bitfinex-derivatives/quotes_BTCF0:USTF0_20251125
["timestamp","ask_amount","ask_price","bid_price","bid_amount"]
[1764112453963,0.0941908,87923.0,87922.0,0.35142834]
[1764112454959,0.0469,87900.0,87899.0,0.3608]
[1764112455155,0.2295,87900.0,87899.0,0.3608]
[1764112455561,0.2307008,87900.0,87899.0,0.3608]
[1764112456660,0.2316608,87900.0,87891.0,0.00017064]
[1764112457054,0.2326608,87900.0,87891.0,0.00017064]
[1764112457665,0.0012008,87896.0,87891.0,0.00017064]
[1764112457960,0.0469,87892.0,87891.0,0.00017064]
[1764112458156,0.0469,87888.0,87887.0,0.3608]
[1764112458557,0.0582834,87888.0,87887.0,0.3608]
[1764112458864,0.3608,87894.0,87885.0,0.09741]
[1764112459160,0.18248,87893.0,87885.0,0.09741]
[1764112459960,0.0113829,87892.0,87885.0,0.09741]
[1764112460262,0.0113829,87892.0,87881.0,0.00017064]
[1764112460263,0.0469,87886.0,87881.0,0.00017064]
[1764112460568,0.0469,87886.0,87879.0,0.3608]
[1764112460569,0.0469,87871.0,87861.0,0.3608]
[1764112460752,0.18244,87870.0,87861.0,0.3608]
[1764112460961,0.0113859,87869.0,87861.0,0.3608]
[1764112461360,0.0113864,87865.0,87861.0,0.3608]
[1764112461660,0.0469,87862.0,87861.0,0.3608]
[1764112463051,0.0489,87862.0,87861.0,0.37255545]
[1764112463958,0.0479,87862.0,87861.0,0.37255545]
[1764112464256,0.0509,87862.0,87861.0,0.37255545]
[1764112464463,0.004,87862.0,87861.0,0.46630545]
[1764112464663,0.1864,87862.0,87861.0,0.46630545]
[1764112465067,0.004,87862.0,87861.0,0.46630545]
[1764112465362,0.1794,87862.0,87861.0,0.46630545]
[1764112465961,0.1764,87862.0,87861.0,0.45455]
[1764112466268,0.1794,87862.0,87861.0,0.45455]
[1764112466666,0.1784,87862.0,87861.0,0.45455]
[1764112467163,0.18528,87862.0,87861.0,0.45455]
[1764112469358,0.17160863,87862.0,87861.0,0.45455]
[1764112470064,0.00017064,87872.0,87871.0,0.09375]
[1764112470264,0.00017064,87872.0,87871.0,0.49079949]
[1764112470265,0.18241064,87872.0,87871.0,0.49079949]
[1764112470754,0.16874169,87872.0,87871.0,0.50342153]
[1764112471464,0.19419169,87872.0,87871.0,0.14262153]
[1764112472265,0.22164169,87872.0,87871.0,0.04887153]
[1764112472466,0.23506,87872.0,87871.0,0.09586153]
[1764112472767,0.21061,87872.0,87871.0,0.14262153]
[1764112472961,0.21061,87872.0,87871.0,0.12999949]
[1764112473659,0.23506,87872.0,87871.0,0.12999949]
[1764112474255,0.23406,87872.0,87871.0,0.12999949]
[1764112474461,0.23506,87872.0,87871.0,0.12999949]
[1764112475256,0.23406,87872.0,87871.0,0.08323949]
[1764112475471,0.23406,87872.0,87871.0,0.03624949]
[1764112475766,0.23306,87872.0,87871.0,0.03624949]
[1764112475966,0.23206,87872.0,87871.0,0.03624949]
[1764112476169,0.23206,87872.0,87871.0,0.08323949]
[1764112478362,0.23206,87872.0,87871.0,0.12999949]
[1764112479371,0.21839001,87872.0,87871.0,0.12999949]
[1764112480574,0.2319,87872.0,87871.0,0.12999949]
[1764112480762,0.0499,87872.0,87871.0,0.12999949]
[1764112481072,0.23186,87872.0,87871.0,0.12999949]
[1764112481963,0.23186,87872.0,87871.0,0.03624949]
[1764112482165,0.23186,87872.0,87871.0,0.36505949]
[1764112482567,0.23186,87872.0,87871.0,0.19388949]
[1764112483373,0.0499,87872.0,87871.0,0.19388949]
[1764112483566,0.23186,87872.0,87871.0,0.19388949]
[1764112484269,0.23186,87872.0,87871.0,0.31348949]
[1764112484773,0.23186,87872.0,87871.0,0.15584949]
[1764112485267,0.0499,87872.0,87871.0,0.48465949]
[1764112485468,0.001,87872.0,87871.0,0.48465949]
[1764112485670,0.18284,87872.0,87871.0,0.48465949]
[1764112486180,0.001,87872.0,87871.0,0.37644509]
[1764112486370,6.4e-07,87880.0,87879.0,0.32881]
[1764112486564,0.22701434,87900.0,87899.0,0.32881]
[1764112486876,0.0575619,87900.0,87899.0,0.36505949]
[1764112487073,0.2394419,87900.0,87899.0,0.36505949]
[1764112487774,0.3994419,87900.0,87899.0,0.03624949]
[1764112487975,0.3994419,87900.0,87899.0,0.09661858]
[1764112488177,0.3994419,87900.0,87899.0,0.03624949]
[1764112488378,0.2424019,87900.0,87899.0,0.09661858]
[1764112488779,0.2424019,87900.0,87899.0,0.03624949]
[1764112489879,0.5724019,87900.0,87899.0,0.03624949]
[1764112490882,1.02011601,87900.0,87899.0,0.09661858]
[1764112491074,1.02011601,87900.0,87899.0,0.03624949]
[1764112491273,1.02011601,87900.0,87899.0,0.0764903]
[1764112491476,1.02011601,87900.0,87899.0,0.03624949]
[1764112492278,0.74011601,87900.0,87899.0,0.03624949]
[1764112492474,0.99999601,87900.0,87899.0,0.03624949]
[1764112493780,0.99999601,87900.0,87896.0,8.1e-07]
[1764112493781,0.0529823,87897.0,87896.0,8.1e-07]
[1764112493982,0.0113829,87892.0,87891.0,0.00017064]
[1764112494282,0.3721829,87892.0,87891.0,0.00017064]
[1764112494684,0.7721829,87892.0,87891.0,0.00017064]
[1764112495185,0.7731829,87892.0,87891.0,0.00017064]
[1764112495678,0.9631829,87892.0,87891.0,0.00017064]
[1764112496286,0.9631829,87892.0,87891.0,6.4e-07]
[1764112497584,0.7731829,87892.0,87891.0,0.15764064]
[1764112497785,1.0048229,87892.0,87891.0,6.4e-07]
[1764112497974,0.6048229,87892.0,87891.0,6.4e-07]
[1764112498287,0.5548229,87892.0,87891.0,6.4e-07]
[1764112498673,0.3731829,87892.0,87891.0,6.4e-07]
[1764112498885,0.5548229,87892.0,87891.0,6.4e-07]
[1764112499988,0.5547829,87892.0,87891.0,0.32881064]
[1764112500287,0.54336,87892.0,87891.0,0.32881064]
[1764112501075,0.54336,87892.0,87891.0,6.4e-07]
[1764112501278,0.0113858,87870.0,87869.0,0.3608]
[1764112501473,0.0113858,87870.0,87869.0,0.51155]
[1764112501688,0.0113854,87873.0,87872.0,0.30863]
[1764112501882,0.0113854,87873.0,87870.0,0.09594]
[1764112501883,0.6020254,87873.0,87870.0,0.09594]
[1764112502278,0.3608,87871.0,87870.0,0.09594]
[1764112502479,0.3608,87871.0,87863.0,0.00017064]
[1764112502679,0.3608,87871.0,87850.0,0.53720115]
[1764112502680,0.0113882,87851.0,87850.0,0.24669]
[1764112502880,0.5929882,87851.0,87850.0,0.24669]
[1764112503286,0.9537882,87851.0,87850.0,0.24669]
[1764112503681,0.95390199,87851.0,87850.0,0.24669]
[1764112504280,0.95390199,87851.0,87850.0,0.09594]
[1764112504786,1.00690199,87851.0,87850.0,0.09594]
[1764112504982,0.0113892,87843.0,87842.0,0.15092074]
[1764112505189,0.4913892,87843.0,87842.0,0.15092074]
[1764112505490,0.8521892,87843.0,87842.0,0.00017074]
[1764112505877,0.8521892,87843.0,87842.0,0.03165203]
[1764112506081,0.7908,87843.0,87842.0,0.34028203]
[1764112506287,0.00311379,87851.0,87850.0,0.30863]
[1764112506486,0.00017074,87859.0,87858.0,0.30863]
[1764112506683,0.18177074,87859.0,87858.0,0.34011129]
[1764112508187,0.00017074,87859.0,87858.0,0.34011129]
[1764112508492,0.49066074,87859.0,87858.0,0.34011129]
[1764112508986,0.54066074,87859.0,87858.0,0.03148129]
[1764112509188,0.54066074,87859.0,87850.0,0.00999999]
[1764112509189,0.20177074,87859.0,87846.0,0.40457]
[1764112509386,0.18177074,87859.0,87852.0,0.30863]
[1764112509589,0.18084004,87856.0,87855.0,0.30863]
[1764112509782,0.0113876,87856.0,87855.0,0.34008452]
[1764112509977,0.0113875,87857.0,87855.0,0.03145452]
[1764112510179,0.00017074,87859.0,87858.0,0.30863]
[1764112510585,0.33663074,87859.0,87858.0,0.18219476]
[1764112510791,0.18169074,87859.0,87858.0,0.34007476]
[1764112511093,0.00017074,87859.0,87858.0,0.34007476]
[1764112511294,0.18169074,87859.0,87858.0,0.30863]
[1764112511989,0.16945244,87880.0,87858.0,0.7514568]
[1764112512196,0.16487,87871.0,87870.0,0.00999999]
[1764112512382,0.18152,87872.0,87864.0,0.09297]
[1764112512383,0.32131,87870.0,87869.0,0.31055]
[1764112512990,0.0113856,87871.0,87870.0,0.31055]
[1764112513191,0.18152,87872.0,87871.0,0.31055]
[1764112513694,0.0113864,87865.0,87864.0,0.40352]
[1764112513890,0.0113864,87865.0,87864.0,0.43494924]
[1764112515898,0.3721864,87865.0,87864.0,0.40352]
[1764112516485,0.32131,87863.0,87862.0,0.00017074]
[1764112516694,0.99131,87863.0,87862.0,0.00017074]
[1764112517798,0.32131,87847.0,87846.0,0.15152]
[1764112517985,0.9049787,87847.0,87846.0,0.0314447]
[1764112518186,0.0113905,87834.0,87833.0,0.31055]
[1764112518394,0.1928705,87834.0,87833.0,0.34200382]
[1764112518597,0.3577405,87834.0,87833.0,0.34200382]
[1764112519196,0.18148,87834.0,87833.0,0.34200382]
[1764112519498,0.3577404,87834.0,87833.0,0.34200382]
[1764112519688,0.5141804,87834.0,87833.0,0.18297382]
[1764112520097,0.5151804,87834.0,87833.0,0.34200382]
[1764112520695,0.5351804,87834.0,87833.0,0.34200382]
[1764112521093,0.5151804,87834.0,87833.0,0.34200382]
[1764112521397,0.3587404,87834.0,87833.0,0.34200382]
[1764112521800,0.3587404,87834.0,87825.0,0.00017074]
[1764112521801,0.32131,87833.0,87825.0,0.00017074]
[1764112522101,0.3327015,87826.0,87825.0,0.00017074]
[1764112522296,0.16487,87805.0,87804.0,0.24449]
[1764112522496,0.34635,87805.0,87804.0,0.40352]
[1764112522695,0.50279,87805.0,87804.0,0.40352]
[1764112523102,0.18148,87805.0,87804.0,0.40352]
[1764112524394,0.34635,87805.0,87804.0,0.40352]
[1764112524895,0.18148,87805.0,87804.0,0.40352]
[1764112531408,0.3327047,87801.0,87800.0,0.40352]
[1764112532518,0.3327051,87798.0,87796.0,0.00017074]
[1764112532713,0.3608,87802.0,87797.0,0.3106433]
[1764112532917,0.3608,87802.0,87801.0,0.31055]
[1764112534830,0.54216,87802.0,87801.0,0.31055]
[1764112536211,0.70703,87802.0,87801.0,0.31055]
[1764112536416,0.86347,87802.0,87801.0,0.31055]
[1764112537016,0.3327051,87798.0,87797.0,0.1516133]
[1764112537322,0.3327051,87798.0,87796.0,0.00017074]
[1764112537323,1.1227984,87798.0,87796.0,0.00017074]
[1764112537523,0.68211,87797.0,87796.0,4e-08]
[1764112537726,0.3327073,87781.0,87780.0,0.40352]
[1764112538024,1.2356273,87781.0,87780.0,0.15152]
[1764112538327,1.2356273,87781.0,87770.0,0.40352]
[1764112538328,0.0113986,87771.0,87770.0,0.40352]
[1764112538525,0.5535586,87771.0,87770.0,0.40352]
[1764112539114,0.54216,87771.0,87770.0,0.40352]
[1764112539427,0.54216,87771.0,87770.0,0.43471289]
[1764112540315,0.3608,87771.0,87770.0,0.43471289]
[1764112540624,0.54312,87771.0,87770.0,0.43471289]
[1764112541422,0.54212,87771.0,87770.0,0.43471289]
[1764112541625,0.54212,87771.0,87770.0,0.43571289]
[1764112541829,0.54208,87771.0,87770.0,0.43571289]
[1764112542028,0.18128,87771.0,87770.0,0.43471289]
[1764112542230,0.01156844,87779.0,87778.0,0.32421]
[1764112542533,0.18145084,87779.0,87778.0,0.32421]
[1764112543329,0.33300084,87779.0,87778.0,0.32421]
[1764112543533,0.51428084,87779.0,87778.0,0.32421]
[1764112544029,0.33300084,87779.0,87778.0,0.32421]
[1764112544224,0.00017084,87779.0,87778.0,0.32421]
[1764112544424,0.18145084,87779.0,87778.0,0.32421]
[1764112544820,0.18145084,87779.0,87778.0,0.32521]
[1764112545324,0.18145084,87779.0,87778.0,0.32421]
[1764112545522,0.18145084,87779.0,87778.0,0.32521]
[1764112545720,0.18145084,87779.0,87778.0,0.35646907]
[1764112545928,0.18145084,87779.0,87778.0,0.35546907]
[1764112548331,0.51428084,87779.0,87778.0,0.35546907]
[1764112548726,0.51428084,87779.0,87778.0,0.18867907]
[1764112548926,0.51428084,87779.0,87778.0,0.35546907]
[1764112549534,0.51428084,87779.0,87778.0,0.03125907]
[1764112549930,0.34295084,87779.0,87778.0,0.35546907]
[1764112550223,0.18145084,87779.0,87778.0,0.35546907]
[1764112551928,0.18145084,87779.0,87778.0,0.35657692]
[1764112552330,0.18145084,87779.0,87778.0,0.35557692]
[1764112552331,0.19284844,87779.0,87778.0,0.35557692]
[1764112553327,0.18145084,87779.0,87778.0,0.35557692]
[1764112554626,0.34295084,87779.0,87778.0,0.35557692]
[1764112555432,0.18145084,87779.0,87778.0,0.35557692]
[1764112556231,0.19284844,87779.0,87778.0,0.35557692]
[1764112556623,0.19268844,87779.0,87778.0,0.35557692]
[1764112557133,0.52551844,87779.0,87778.0,0.35557692]
[1764112560336,0.51412084,87779.0,87778.0,0.35557692]
[1764112560535,0.34279084,87779.0,87778.0,0.35557692]
[1764112561031,0.49138084,87779.0,87778.0,0.39574562]
[1764112561429,0.00017084,87779.0,87778.0,0.36797462]
[1764112561638,8.4e-07,87779.0,87778.0,0.72877462]
[1764112561940,1.38e-06,87781.0,87780.0,0.31029]
[1764112562142,0.16104138,87781.0,87780.0,0.34165692]
[1764112562345,1.38e-06,87781.0,87780.0,0.34165692]
[1764112562534,0.15916,87784.0,87780.0,0.04276432]
[1764112562734,0.15916,87784.0,87783.0,0.31029]
[1764112562933,0.15916,87784.0,87783.0,0.34165692]
[1764112563531,0.3608,87789.0,87788.0,0.31029]
[1764112563737,0.3608,87789.0,87788.0,0.34165692]
[1764112564032,8.4e-07,87791.0,87790.0,0.31029]
[1764112564240,8.4e-07,87791.0,87790.0,0.34165692]
[1764112564544,8.4e-07,87791.0,87790.0,0.46125692]
[1764112565342,8.4e-07,87791.0,87790.0,0.46325692]
[1764112565738,8.4e-07,87791.0,87790.0,0.34365692]
[1764112565933,0.18104,87798.0,87797.0,0.31029]
[1764112566134,0.18104,87798.0,87797.0,0.40215467]
[1764112566330,0.32844,87798.0,87797.0,0.40215467]
[1764112566536,0.47703,87798.0,87797.0,0.40215467]
[1764112566731,0.307386,87791.0,87790.0,0.002]
[1764112566930,0.3073873,87781.0,87772.0,0.1196]
[1764112567135,0.8492273,87781.0,87772.0,0.1196]
[1764112568033,0.3073899,87761.0,87760.0,0.31029]
[1764112568238,0.18104,87765.0,87764.0,0.31029]
[1764112570045,0.3608,87772.0,87764.0,0.3216895]
[1764112570235,0.3608,87781.0,87780.0,0.40309]
[1764112570846,0.181,87784.0,87783.0,0.31029]
[1764112571948,0.3059,87777.0,87776.0,0.66475]
[1764112572248,0.3172978,87777.0,87776.0,0.66475]
[1764112572453,0.3059,87776.0,87775.0,0.00017084]
[1764112572749,0.6667,87776.0,87775.0,0.00017084]
[1764112573453,0.6667,87776.0,87775.0,0.11977084]
[1764112573840,0.6667,87776.0,87775.0,0.42372084]
[1764112574050,0.3608,87776.0,87775.0,0.42372084]
[1764112574450,0.18096,87778.0,87777.0,0.30395]
[1764112576447,0.0113971,87783.0,87782.0,0.30395]
[1764112576653,0.1629671,87783.0,87782.0,0.30395]
[1764112576949,0.3172971,87783.0,87782.0,0.30395]
[1764112577152,0.1629671,87783.0,87782.0,0.30395]
[1764112577747,0.18096,87784.0,87783.0,0.30395]
[1764112578646,0.1923569,87784.0,87783.0,0.30395]
[1764112579249,0.18096,87784.0,87783.0,0.30395]
[1764112579450,0.18096,87784.0,87782.0,0.1206]
[1764112579451,0.317297,87783.0,87782.0,0.1206]
[1764112580151,0.317297,87783.0,87782.0,0.1196]
[1764112581944,0.717297,87783.0,87782.0,0.1196]
[1764112582144,0.831397,87783.0,87782.0,0.1196]
[1764112582354,0.3758274,87780.0,87779.0,0.03027951]
[1764112582547,1.4566274,87780.0,87779.0,0.03027951]
[1764112583747,0.3172979,87776.0,87775.0,0.00017084]
[1764112583946,0.7072979,87776.0,87775.0,0.00017084]
[1764112584148,0.3172979,87776.0,87775.0,0.00017084]
[1764112584457,0.9381379,87776.0,87775.0,0.00017084]
[1764112585860,0.5581379,87776.0,87775.0,0.00017084]
[1764112586158,0.9481379,87776.0,87775.0,0.00017084]
[1764112587756,0.3608,87780.0,87779.0,0.30395]
[1764112587956,0.5416,87780.0,87779.0,0.30395]
[1764112590152,0.0113979,87776.0,87775.0,0.00017084]
[1764112590354,0.5416,87780.0,87779.0,0.30395]
[1764112591555,0.1808,87780.0,87779.0,0.30395]
[1764112591753,0.3608,87788.0,87787.0,0.30395]
[1764112592657,0.1808,87789.0,87788.0,0.30395]
[1764112593253,0.1808,87789.0,87788.0,0.3153464]
[1764112593461,0.1808,87794.0,87791.0,0.30395]
[1764112593656,0.22701745,87810.0,87791.0,0.66475]
[1764112593861,0.678093,87814.0,87813.0,0.30395]
[1764112594062,0.372193,87814.0,87813.0,0.30395]
[1764112594253,0.552993,87814.0,87813.0,0.30395]
[1764112594863,0.162964,87806.0,87805.0,0.15413084]
[1764112595076,0.162964,87806.0,87805.0,0.30412084]
[1764112595280,0.011394,87806.0,87805.0,0.30412084]
[1764112595581,0.552993,87814.0,87810.0,0.10134]
[1764112595582,0.0113931,87813.0,87810.0,0.10134]
[1764112595770,0.0113931,87813.0,87812.0,0.30395]
[1764112595972,0.1629631,87813.0,87812.0,0.30395]
[1764112596183,0.5416,87814.0,87813.0,0.30395]
[1764112596481,0.69317,87814.0,87813.0,0.30395]
[1764112597477,0.8475,87814.0,87813.0,0.30395]
[1764112598368,0.8475,87814.0,87813.0,0.15396]
[1764112598569,0.317294,87806.0,87805.0,0.30412084]
[1764112598773,0.678094,87806.0,87805.0,0.30412084]
[1764112599176,0.6667,87806.0,87805.0,0.30412084]
[1764112599986,0.678094,87806.0,87805.0,0.30412084]
[1764112601475,0.6667,87806.0,87805.0,0.30412084]
[1764112603186,0.6667,87806.0,87805.0,0.42372084]
[1764112605687,0.3608,87806.0,87805.0,0.42472084]
[1764112606179,0.52104,87806.0,87805.0,0.42372084]
[1764112606380,0.69132,87806.0,87805.0,0.42372084]
[1764112608490,0.52104,87806.0,87805.0,0.42372084]
[1764112608682,0.702714,87806.0,87805.0,0.42372084]
[1764112611680,0.532434,87806.0,87805.0,0.42372084]
[1764112611895,0.3608,87806.0,87805.0,0.42372084]
[1764112612589,0.3419136,87810.0,87809.0,0.31751]
[1764112613094,0.16024,87810.0,87809.0,0.31751]
[1764112613294,0.33052,87810.0,87809.0,0.31751]
[1764112614693,0.1808,87814.0,87808.0,0.09822]
[1764112614694,0.34104,87814.0,87813.0,0.31751]
[1764112614889,0.51132,87814.0,87813.0,0.27903]
[1764112615296,0.51132,87814.0,87813.0,0.43711]
[1764112616492,0.51132,87814.0,87813.0,0.1196]
[1764112616892,0.93132,87814.0,87813.0,0.1196]
[1764112617998,0.93232,87814.0,87813.0,0.1196]
[1764112619400,0.1808,87814.0,87813.0,0.43711]
[1764112619600,0.1818,87814.0,87813.0,0.43711]
[1764112620796,0.34204,87814.0,87813.0,0.43711]
[1764112620995,0.34204,87814.0,87813.0,0.1196]
[1764112620996,0.501553,87814.0,87813.0,0.1196]
[1764112621402,0.501553,87814.0,87813.0,0.26668]
[1764112621596,0.34104,87814.0,87813.0,0.5123]
[1764112621996,0.48916,87814.0,87813.0,0.41835]
[1764112622605,0.34104,87814.0,87813.0,0.5113]
[1764112622906,0.34204,87814.0,87813.0,0.5113]
[1764112623110,0.1818,87814.0,87813.0,0.5113]
[1764112623403,0.1818,87814.0,87813.0,0.57174304]
[1764112624004,0.1818,87814.0,87813.0,0.5113]
[1764112624005,0.001,87814.0,87813.0,0.5113]
[1764112624196,0.00017084,87822.0,87821.0,0.29775]
[1764112624197,0.18081084,87822.0,87821.0,0.29775]
[1764112625002,0.47138084,87822.0,87821.0,0.29775]
[1764112625308,0.29057,87818.0,87817.0,0.06058421]
[1764112626104,0.29057,87816.0,87815.0,0.06058421]
[1764112626297,0.29057,87814.0,87813.0,0.1196]
[1764112626492,0.65137,87814.0,87813.0,0.1196]
[1764112626697,0.65137,87814.0,87813.0,0.41735]
[1764112626896,0.65137,87814.0,87813.0,0.5113]
[1764112627599,0.3608,87814.0,87813.0,0.57188421]
[1764112627798,0.3608,87814.0,87813.0,0.5113]
[1764112627799,0.18064,87814.0,87813.0,0.5113]
[1764112628508,0.00017084,87822.0,87821.0,0.29775]
[1764112628807,0.18077084,87822.0,87821.0,0.29775]
[1764112629002,0.18077084,87822.0,87821.0,0.35829575]
[1764112629402,0.18077084,87822.0,87821.0,0.29775]
[1764112629598,0.32322084,87822.0,87821.0,0.29775]
[1764112630403,0.18077084,87822.0,87821.0,0.29775]
[1764112630603,0.32322084,87822.0,87821.0,0.29775]
[1764112630902,0.18077084,87822.0,87821.0,0.29775]
[1764112631308,0.32322084,87822.0,87821.0,0.29775]
[1764112631606,0.18077084,87822.0,87821.0,0.29775]
[1764112632006,0.18077084,87822.0,87821.0,0.35829575]
[1764112632308,0.18077084,87822.0,87821.0,0.29775]
[1764112632602,0.18077084,87822.0,87821.0,0.35829575]
[1764112632804,0.32797084,87822.0,87821.0,0.41735]
[1764112633004,0.47880084,87822.0,87821.0,0.41735]
[1764112634893,0.47880084,87822.0,87821.0,0.1196]
[1764112635899,0.96880084,87822.0,87821.0,0.1196]
[1764112636114,1.35880084,87822.0,87821.0,0.1196]
[1764112636403,0.0341763,87821.0,87811.0,0.04032892]
[1764112636607,0.5556,87812.0,87811.0,0.33351892]
[1764112636910,0.5669933,87812.0,87811.0,0.18705892]
[1764112637109,0.5669933,87812.0,87811.0,0.33351892]
[1764112637305,0.5669933,87812.0,87811.0,0.29519]
[1764112637917,0.5679933,87812.0,87811.0,0.29519]
[1764112638212,0.1948,87807.0,87806.0,0.35573575]
[1764112638397,0.3754,87807.0,87806.0,0.29519]
[1764112639306,0.3867939,87807.0,87806.0,0.29519]
[1764112639500,0.3867939,87807.0,87806.0,0.06054575]
[1764112639704,0.3754,87807.0,87806.0,0.35573575]
[1764112640413,0.3754,87807.0,87806.0,0.29519]
[1764112640612,0.3754,87807.0,87806.0,0.29619]
[1764112640815,0.3608,87812.0,87811.0,0.29519]
[1764112641309,0.3608,87812.0,87811.0,0.35569707]
[1764112641708,0.65883,87844.0,87843.0,0.29519]
[1764112642010,0.29803,87844.0,87843.0,0.29519]
[1764112642510,0.3608,87844.0,87832.0,0.11104845]
[1764112642710,0.29803,87840.0,87839.0,0.29519]
[1764112642909,0.1806,87846.0,87842.0,0.29519]
[1764112643107,0.47863,87846.0,87840.0,0.00999999]
[1764112643301,0.29803,87830.0,87829.0,0.00017084]
[1764112643502,0.47863,87830.0,87829.0,0.00017084]
[1764112644214,0.49863,87830.0,87829.0,0.00017084]
[1764112645514,0.49963,87830.0,87829.0,0.00017084]
[1764112645903,0.47963,87830.0,87829.0,0.00017084]
[1764112646409,0.3608,87853.0,87835.0,0.0113902]
[1764112646612,0.29803,87841.0,87840.0,0.29519]
[1764112646804,0.30942,87837.0,87836.0,0.50953]
[1764112647010,0.30942,87837.0,87836.0,0.3608]
[1764112647317,0.30942,87837.0,87836.0,0.39101819]
[1764112648415,0.29803,87837.0,87836.0,0.68620819]
[1764112648810,0.29803,87837.0,87836.0,0.39201819]
[1764112649016,1.02883,87837.0,87836.0,0.001]
[1764112649216,0.3094207,87832.0,87830.0,0.03021819]
[1764112649415,0.47863,87831.0,87830.0,0.03021819]
[1764112649615,0.86863,87831.0,87830.0,0.03021819]
[1764112650321,0.3956509,87830.0,87829.0,0.00017084]
[1764112652017,0.3956509,87830.0,87829.0,0.00117084]
[1764112652521,0.7756509,87830.0,87829.0,0.00117084]
[1764112654517,0.7756509,87830.0,87812.0,0.3608]
[1764112654518,0.38409,87822.0,87821.0,0.03021819]
[1764112654721,0.56465,87822.0,87821.0,0.03021819]
[1764112655119,0.3094221,87821.0,87820.0,0.03021819]
[1764112656326,0.309423,87814.0,87813.0,0.1196]
[1764112657518,0.32776,87822.0,87821.0,0.29519]
[1764112657718,0.489982,87822.0,87821.0,0.29519]
[1764112658121,0.47859,87822.0,87821.0,0.29519]
[1764112658824,0.47859,87822.0,87821.0,0.29819]
[1764112659526,0.47863,87822.0,87821.0,0.29819]
[1764112660424,0.47863,87822.0,87821.0,0.15173]
[1764112660823,0.51843,87822.0,87821.0,0.003]
[1764112661127,0.47863,87822.0,87821.0,0.29819]
[1764112661918,0.56834,87822.0,87821.0,0.15173]
[1764112663120,0.29803,87822.0,87821.0,0.29636]
[1764112663320,0.1806,87822.0,87821.0,0.65716]
[1764112663623,0.00017084,87829.0,87828.0,0.28796]
[1764112663827,0.18077084,87829.0,87828.0,0.28796]
[1764112664830,0.18077084,87829.0,87828.0,0.28896]
[1764112665720,0.46035084,87829.0,87828.0,0.14433]
[1764112665920,0.46035084,87829.0,87828.0,0.001]
[1764112666422,1.26115084,87829.0,87828.0,0.001]
[1764112666626,1.26115084,87829.0,87824.0,0.1196]
[1764112666627,0.0113912,87828.0,87826.0,4.44e-06]
[1764112666932,0.0113912,87828.0,87813.0,0.04032688]
[1764112666933,0.2909729,87815.0,87813.0,0.04032688]
[1764112667229,0.3358231,87813.0,87810.0,0.04032688]
[1764112667426,0.3358231,87813.0,87809.0,0.04032688]
[1764112667821,0.3333531,87813.0,87809.0,0.04032688]
[1764112668529,0.3343531,87813.0,87809.0,0.04032688]
[1764112668717,0.001,87813.0,87812.0,0.28813084]
[1764112669036,0.001,87813.0,87812.0,0.32845772]
[1764112669220,0.001,87813.0,87812.0,0.28813084]
[1764112669923,0.00017084,87829.0,87828.0,0.28796]
[1764112670228,0.00017084,87829.0,87828.0,0.14333]
[1764112670229,0.46031084,87829.0,87828.0,0.14333]
[1764112670426,0.18073084,87829.0,87828.0,0.28796]
[1764112670623,0.00017084,87829.0,87828.0,0.28796]
[1764112671824,0.00017084,87829.0,87828.0,0.28896]
[1764112672438,0.00017084,87829.0,87828.0,0.28796]
[1764112673330,0.01156194,87829.0,87828.0,0.28796]
[1764112673936,0.00017084,87829.0,87828.0,0.28896]
[1764112674329,0.00017084,87829.0,87828.0,0.28796]
[1764112675027,0.00017084,87829.0,87828.0,0.28896]
[1764112676038,0.00017084,87829.0,87807.0,3.91e-06]
[1764112676039,0.27958,87808.0,87807.0,3.91e-06]
[1764112676242,0.2686586,87771.0,87770.0,0.10082295]
[1764112676540,0.0113986,87771.0,87770.0,0.28796]
[1764112676731,0.0113986,87771.0,87770.0,0.71293725]
[1764112676931,0.0840378,87777.0,87776.0,0.28796]
[1764112677136,0.10931435,87777.0,87776.0,0.28796]
[1764112677342,0.08414209,87777.0,87776.0,0.71293725]
[1764112677539,0.10938725,87777.0,87776.0,0.71293725]
[1764112677937,0.36664725,87777.0,87776.0,0.42497725]
[1764112678133,0.38664725,87777.0,87776.0,0.42497725]
[1764112678329,0.25726,87769.0,87768.0,0.08973084]
[1764112678535,0.2686589,87769.0,87768.0,0.23306084]
[1764112678740,0.2686589,87769.0,87768.0,0.65803809]
[1764112679341,0.2686589,87769.0,87768.0,0.00017084]
[1764112679549,0.29385912,87769.0,87768.0,0.00017084]
[1764112680231,0.2686589,87769.0,87768.0,0.44240084]
[1764112680737,0.0123989,87769.0,87768.0,0.86737809]
[1764112680932,0.001,87769.0,87768.0,0.86737809]
[1764112681136,0.0113984,87773.0,87772.0,0.33982]
[1764112681532,0.23756429,87777.0,87776.0,0.17205]
[1764112681737,0.17632219,87777.0,87776.0,0.33982]
[1764112682043,0.17632219,87777.0,87776.0,0.76479725]
[1764112682239,0.3415889,87769.0,87768.0,0.44240084]
[1764112682639,0.3415889,87769.0,87768.0,0.86737809]
[1764112682832,0.3425889,87769.0,87768.0,0.42514809]
[1764112683238,0.3415889,87769.0,87768.0,0.42514809]
[1764112683438,0.3425889,87769.0,87768.0,0.42514809]
[1764112684142,0.3425889,87769.0,87748.0,0.3608]
[1764112684343,0.0114012,87751.0,87750.0,0.42938]
[1764112684547,0.0114872,87751.0,87750.0,0.42938]
[1764112684749,0.0114872,87751.0,87750.0,0.85435725]
[1764112685342,8.6e-05,87751.0,87750.0,0.85435725]
[1764112686043,8.6e-05,87751.0,87750.0,0.85535725]
[1764112686044,0.330276,87751.0,87750.0,0.85535725]
[1764112686551,0.330276,87751.0,87750.0,0.85435725]
[1764112686752,0.330276,87751.0,87750.0,0.85535725]
[1764112688145,0.330276,87751.0,87742.0,0.17222084]
[1764112688146,0.3415922,87743.0,87742.0,0.17222084]
[1764112688544,0.3415922,87743.0,87730.0,0.00013103]
[1764112688545,0.33019,87731.0,87730.0,0.00013103]
[1764112688757,0.33029429,87731.0,87730.0,0.44236103]
[1764112688946,0.00010429,87731.0,87730.0,0.44236103]
[1764112689147,0.01150809,87731.0,87730.0,0.44236103]
[1764112689351,0.0114051,87721.0,87720.0,0.44223]
[1764112690444,0.34172613,87721.0,87720.0,0.44323]
[1764112690644,0.3415961,87713.0,87712.0,0.17216626]
[1764112690846,0.0114061,87713.0,87712.0,0.33993626]
[1764112691041,0.3415956,87717.0,87716.0,0.17205]